[Event "November 21 Late 2023"]
[Site "https://www.chess.com"]
[Date "2023.11.21"]
[Round "5"]
[White "Jimenez Ruano, Adrian"]
[Black "Banzea, Alexandru-Bogdan"]
[Result "0-1"]
[Board "66"]
[TimeControl "180+1"]
[WhiteFideId "22276050"]
[BlackFideId "1232622"]
[WhiteElo "2215"]
[BlackElo "2294"]
[WhiteTeam "ESP"]
[BlackTeam "ROU"]
[WhiteClock "0:00:00"]
[BlackClock "0:00:20"]

1. Nf3 {[%clk 0:03:00]}  Nf6 {[%clk 0:02:58]} 2. c4 {[%clk 0:03:00]}  g6 {[%clk 0:02:58]} 3. b3 {[%clk 0:03:00]}  Bg7 {[%clk 0:02:59]} 4. Bb2 {[%clk 0:03:01]}  O-O {[%clk 0:02:59]} 5. g3 {[%clk 0:03:02]}  d6 {[%clk 0:03:00]} 6. Bg2 {[%clk 0:03:02]}  e5 {[%clk 0:03:00]} 7. O-O {[%clk 0:03:02]}  c6 {[%clk 0:03:00]} 8. d3 {[%clk 0:03:01]}  Re8 {[%clk 0:03:00]} 9. Nbd2 {[%clk 0:02:59]}  Nbd7 {[%clk 0:03:01]} 10. Qc2 {[%clk 0:02:59]}  a6 {[%clk 0:03:01]} 11. Rac1 {[%clk 0:02:52]}  b6 {[%clk 0:02:48]} 12. Rfd1 {[%clk 0:02:49]}  Bb7 {[%clk 0:02:48]} 13. b4 {[%clk 0:02:47]}  c5 {[%clk 0:02:30]} 14. a3 {[%clk 0:02:47]}  h6 {[%clk 0:02:29]} 15. Ne4 {[%clk 0:02:31]}  Nf8 {[%clk 0:02:23]} 16. Nfd2 {[%clk 0:02:31]}  Rb8 {[%clk 0:02:20]} 17. Nxf6+ {[%clk 0:02:16]}  Bxf6 {[%clk 0:02:21]} 18. Bxb7 {[%clk 0:02:16]}  Rxb7 {[%clk 0:02:21]} 19. Ne4 {[%clk 0:02:17]}  Bg7 {[%clk 0:02:21]} 20. Nc3 {[%clk 0:02:16]}  f5 {[%clk 0:02:16]} 21. Nd5 {[%clk 0:02:16]}  f4 {[%clk 0:02:14]} 22. Qa4 {[%clk 0:02:15]}  e4 {[%clk 0:01:42]} 23. Bxg7 {[%clk 0:02:07]}  Kxg7 {[%clk 0:01:43]} 24. dxe4 {[%clk 0:02:00]}  fxg3 {[%clk 0:01:38]} 25. hxg3 {[%clk 0:02:00]}  Rxe4 {[%clk 0:01:38]} 26. Qc6 {[%clk 0:01:54]}  Rf7 {[%clk 0:01:33]} 27. e3 {[%clk 0:01:02]}  Qg5 {[%clk 0:01:30]} 28. Nf4 {[%clk 0:00:43]}  Rxe3 {[%clk 0:00:40]} 29. fxe3 {[%clk 0:00:43]}  Qxg3+ {[%clk 0:00:41]} 30. Qg2 {[%clk 0:00:17]}  Qxe3+ {[%clk 0:00:41]} 31. Qf2 {[%clk 0:00:15]}  Qe5 {[%clk 0:00:39]} 32. Rf1 {[%clk 0:00:08]}  Kh7 {[%clk 0:00:37]} 33. Qg3 {[%clk 0:00:06]}  Rf5 {[%clk 0:00:30]} 34. Ne2 {[%clk 0:00:05]}  Rg5 {[%clk 0:00:30]} 35. Rxf8 {[%clk 0:00:01]}  Rxg3+ {[%clk 0:00:25]} 36. Nxg3 {[%clk 0:00:00]}  Qe3+ {[%clk 0:00:20]} 0-1

[Event "November 21 Late 2023"]
[Site "https://www.chess.com"]
[Date "2023.11.21"]
[Round "5"]
[White "Statham_l3"]
[Black "Zeman, Matyas"]
[Result "1-0"]
[Board "69"]
[TimeControl "180+1"]
[BlackFideId "364398"]
[WhiteElo "2585"]
[BlackElo "2286"]
[BlackTeam "CZE"]
[WhiteClock "0:00:36"]
[BlackClock "0:00:00"]

1. e4 {[%clk 0:03:00]}  e5 {[%clk 0:02:37]} 2. Nf3 {[%clk 0:02:59]}  Nc6 {[%clk 0:02:38]} 3. Bb5 {[%clk 0:02:57]}  a6 {[%clk 0:02:37]} 4. Ba4 {[%clk 0:02:57]}  Nf6 {[%clk 0:02:34]} 5. Qe2 {[%clk 0:02:57]}  b5 {[%clk 0:02:23]} 6. Bb3 {[%clk 0:02:57]}  Bc5 {[%clk 0:02:23]} 7. a4 {[%clk 0:02:57]}  Rb8 {[%clk 0:02:14]} 8. axb5 {[%clk 0:02:57]}  axb5 {[%clk 0:02:08]} 9. Nc3 {[%clk 0:02:57]}  O-O {[%clk 0:01:50]} 10. d3 {[%clk 0:02:57]}  Re8 {[%clk 0:01:35]} 11. Bg5 {[%clk 0:02:56]}  h6 {[%clk 0:01:34]} 12. Bh4 {[%clk 0:02:56]}  g5 {[%clk 0:01:34]} 13. Nxg5 {[%clk 0:02:52]}  hxg5 {[%clk 0:01:35]} 14. Bxg5 {[%clk 0:02:53]}  Nd4 {[%clk 0:01:32]} 15. Qd2 {[%clk 0:02:26]}  Nxb3 {[%clk 0:01:30]} 16. cxb3 {[%clk 0:02:27]}  Be7 {[%clk 0:01:28]} 17. h4 {[%clk 0:02:25]}  d6 {[%clk 0:01:23]} 18. O-O-O {[%clk 0:02:22]}  Be6 {[%clk 0:01:18]} 19. g4 {[%clk 0:02:17]}  b4 {[%clk 0:00:53]} 20. Ne2 {[%clk 0:01:28]}  Bxb3 {[%clk 0:00:52]} 21. Rdg1 {[%clk 0:01:14]}  Qd7 {[%clk 0:00:51]} 22. Bh6 {[%clk 0:00:45]}  Qc6+ {[%clk 0:00:45]} 23. Kb1 {[%clk 0:00:41]}  Nh7 {[%clk 0:00:18]} 24. g5 {[%clk 0:00:40]}  Qa6 {[%clk 0:00:17]} 25. Nc1 {[%clk 0:00:39]}  Be6 {[%clk 0:00:10]} 26. g6 {[%clk 0:00:38]}  Nf6 {[%clk 0:00:00]} 27. gxf7+ {[%clk 0:00:36]} 1-0

[Event "November 21 Late 2023"]
[Site "https://www.chess.com"]
[Date "2023.11.21"]
[Round "5"]
[White "Rakitic2010"]
[Black "GatoRojo150"]
[Result "0-1"]
[Board "70"]
[TimeControl "180+1"]
[WhiteElo "2443"]
[BlackElo "2582"]
[WhiteClock "0:00:00"]
[BlackClock "0:00:49"]

1. e4 {[%clk 0:02:55]}  e5 {[%clk 0:02:59]} 2. Nf3 {[%clk 0:02:53]}  Nc6 {[%clk 0:03:00]} 3. Bb5 {[%clk 0:02:53]}  a6 {[%clk 0:03:00]} 4. Ba4 {[%clk 0:02:53]}  d6 {[%clk 0:03:00]} 5. O-O {[%clk 0:02:50]}  Bd7 {[%clk 0:03:01]} 6. d4 {[%clk 0:02:50]}  Nge7 {[%clk 0:03:01]} 7. c3 {[%clk 0:02:48]}  Ng6 {[%clk 0:03:00]} 8. Re1 {[%clk 0:02:43]}  Be7 {[%clk 0:03:01]} 9. Nbd2 {[%clk 0:02:40]}  O-O {[%clk 0:02:58]} 10. Nf1 {[%clk 0:02:39]}  Bg4 {[%clk 0:02:58]} 11. h3 {[%clk 0:02:38]}  Bxf3 {[%clk 0:02:57]} 12. Qxf3 {[%clk 0:02:38]}  b5 {[%clk 0:02:58]} 13. d5 {[%clk 0:02:33]}  bxa4 {[%clk 0:02:55]} 14. dxc6 {[%clk 0:02:33]}  Qe8 {[%clk 0:02:55]} 15. Be3 {[%clk 0:02:25]}  Qxc6 {[%clk 0:02:55]} 16. Ng3 {[%clk 0:02:22]}  Bd8 {[%clk 0:02:48]} 17. Nf5 {[%clk 0:02:20]}  Ne7 {[%clk 0:02:48]} 18. Qg4 {[%clk 0:01:55]}  Nxf5 {[%clk 0:02:47]} 19. exf5 {[%clk 0:01:47]}  Bf6 {[%clk 0:02:34]} 20. Rad1 {[%clk 0:01:41]}  d5 {[%clk 0:02:32]} 21. c4 {[%clk 0:01:31]}  d4 {[%clk 0:02:30]} 22. Bg5 {[%clk 0:01:30]}  Bxg5 {[%clk 0:02:30]} 23. Qxg5 {[%clk 0:01:31]}  f6 {[%clk 0:02:30]} 24. Qg4 {[%clk 0:01:25]}  Qxc4 {[%clk 0:02:27]} 25. f4 {[%clk 0:01:23]}  Rae8 {[%clk 0:02:15]} 26. fxe5 {[%clk 0:01:23]}  fxe5 {[%clk 0:02:16]} 27. f6 {[%clk 0:01:15]}  Rxf6 {[%clk 0:02:11]} 28. Rxd4 {[%clk 0:01:14]}  Qxd4+ {[%clk 0:01:57]} 29. Qxd4 {[%clk 0:01:08]}  exd4 {[%clk 0:01:58]} 30. Rxe8+ {[%clk 0:01:06]}  Rf8 {[%clk 0:01:54]} 31. Re7 {[%clk 0:01:03]}  Rc8 {[%clk 0:01:40]} 32. Kf2 {[%clk 0:01:01]}  c5 {[%clk 0:01:36]} 33. Rd7 {[%clk 0:00:55]}  Rb8 {[%clk 0:01:35]} 34. Kf3 {[%clk 0:00:47]}  Rxb2 {[%clk 0:01:34]} 35. Ke4 {[%clk 0:00:48]}  Rxg2 {[%clk 0:01:30]} 36. Rc7 {[%clk 0:00:47]}  Re2+ {[%clk 0:01:22]} 37. Kf3 {[%clk 0:00:36]}  Re3+ {[%clk 0:01:19]} 38. Kf4 {[%clk 0:00:36]}  Rc3 {[%clk 0:01:08]} 39. Kf5 {[%clk 0:00:32]}  h6 {[%clk 0:01:06]} 40. a3 {[%clk 0:00:25]}  Kh7 {[%clk 0:01:03]} 41. h4 {[%clk 0:00:23]}  d3 {[%clk 0:00:58]} 42. Ke4 {[%clk 0:00:18]}  d2 {[%clk 0:00:56]} 43. Rd7 {[%clk 0:00:17]}  Rc4+ {[%clk 0:00:54]} 44. Ke3 {[%clk 0:00:10]}  Rxh4 {[%clk 0:00:52]} 45. Rxd2 {[%clk 0:00:09]}  Rh3+ {[%clk 0:00:52]} 46. Ke4 {[%clk 0:00:09]}  Rxa3 {[%clk 0:00:52]} 47. Rd7 {[%clk 0:00:04]}  Rc3 {[%clk 0:00:50]} 48. Ke5 {[%clk 0:00:03]}  a3 {[%clk 0:00:51]} 49. Ke6 {[%clk 0:00:00]}  a2 {[%clk 0:00:49]} 0-1

[Event "November 21 Late 2023"]
[Site "https://www.chess.com"]
[Date "2023.11.21"]
[Round "5"]
[White "Martins, Vinicius Tine"]
[Black "ArtemDyachuk"]
[Result "1-0"]
[Board "73"]
[TimeControl "180+1"]
[WhiteFideId "2112884"]
[WhiteElo "2373"]
[BlackElo "2574"]
[WhiteTeam "BRA"]
[WhiteClock "0:00:11"]
[BlackClock "0:00:00"]

1. d4 {[%clk 0:03:00]}  Nf6 {[%clk 0:02:59]} 2. Bf4 {[%clk 0:02:59]}  e6 {[%clk 0:02:57]} 3. Nf3 {[%clk 0:02:57]}  b6 {[%clk 0:02:57]} 4. Nbd2 {[%clk 0:02:54]}  Bb7 {[%clk 0:02:56]} 5. e3 {[%clk 0:02:52]}  c5 {[%clk 0:02:55]} 6. h3 {[%clk 0:02:49]}  cxd4 {[%clk 0:02:52]} 7. exd4 {[%clk 0:02:47]}  Nc6 {[%clk 0:02:50]} 8. c3 {[%clk 0:02:45]}  Be7 {[%clk 0:02:42]} 9. Bd3 {[%clk 0:02:43]}  O-O {[%clk 0:02:41]} 10. O-O {[%clk 0:02:41]}  d6 {[%clk 0:02:40]} 11. Bh2 {[%clk 0:02:04]}  Re8 {[%clk 0:02:39]} 12. Nc4 {[%clk 0:01:41]}  Bf8 {[%clk 0:02:35]} 13. Re1 {[%clk 0:01:39]}  Rc8 {[%clk 0:02:30]} 14. a4 {[%clk 0:01:38]}  Qc7 {[%clk 0:02:19]} 15. Qb3 {[%clk 0:01:32]}  Qb8 {[%clk 0:02:15]} 16. a5 {[%clk 0:01:30]}  bxa5 {[%clk 0:02:08]} 17. Nfd2 {[%clk 0:01:26]}  g5 {[%clk 0:01:45]} 18. Qc2 {[%clk 0:01:21]}  Qa8 {[%clk 0:01:34]} 19. f3 {[%clk 0:01:17]}  h6 {[%clk 0:01:30]} 20. Nxa5 {[%clk 0:01:13]}  Nb4 {[%clk 0:01:24]} 21. Qb1 {[%clk 0:01:11]}  Nxd3 {[%clk 0:01:24]} 22. Qxd3 {[%clk 0:01:11]}  Bd5 {[%clk 0:01:17]} 23. c4 {[%clk 0:01:08]}  Bc6 {[%clk 0:01:16]} 24. Nxc6 {[%clk 0:01:07]}  Qxc6 {[%clk 0:01:17]} 25. Rxa7 {[%clk 0:01:05]}  Qb6 {[%clk 0:01:13]} 26. Ra2 {[%clk 0:01:03]}  Bg7 {[%clk 0:01:10]} 27. b3 {[%clk 0:01:00]}  Nd7 {[%clk 0:01:06]} 28. Kh1 {[%clk 0:00:50]}  Bxd4 {[%clk 0:00:55]} 29. Ne4 {[%clk 0:00:48]}  d5 {[%clk 0:00:43]} 30. Nd6 {[%clk 0:00:43]}  Bg7 {[%clk 0:00:34]} 31. Nxe8 {[%clk 0:00:40]}  Rxe8 {[%clk 0:00:35]} 32. cxd5 {[%clk 0:00:39]}  Qb4 {[%clk 0:00:33]} 33. Re4 {[%clk 0:00:37]}  Qd6 {[%clk 0:00:33]} 34. Ra6 {[%clk 0:00:35]}  Nc5 {[%clk 0:00:08]} 35. Rxd6 {[%clk 0:00:30]}  Nxd3 {[%clk 0:00:09]} 36. Bg1 {[%clk 0:00:27]}  Ra8 {[%clk 0:00:07]} 37. dxe6 {[%clk 0:00:25]}  Nf4 {[%clk 0:00:06]} 38. exf7+ {[%clk 0:00:24]}  Kxf7 {[%clk 0:00:05]} 39. Rd7+ {[%clk 0:00:24]}  Kg6 {[%clk 0:00:06]} 40. Rd1 {[%clk 0:00:22]}  Ra2 {[%clk 0:00:04]} 41. Rxf4 {[%clk 0:00:16]}  gxf4 {[%clk 0:00:03]} 42. Rb1 {[%clk 0:00:15]}  Ra5 {[%clk 0:00:02]} 43. b4 {[%clk 0:00:15]}  Rb5 {[%clk 0:00:03]} 44. Bc5 {[%clk 0:00:15]}  Kf5 {[%clk 0:00:03]} 45. Rd1 {[%clk 0:00:13]}  Bc3 {[%clk 0:00:02]} 46. Rd5+ {[%clk 0:00:13]}  Ke6 {[%clk 0:00:01]} 47. Rd6+ {[%clk 0:00:13]}  Kf5 {[%clk 0:00:01]} 48. Rxh6 {[%clk 0:00:13]}  Be1 {[%clk 0:00:01]} 49. h4 {[%clk 0:00:12]}  Bg3 {[%clk 0:00:00]} 50. Kg1 {[%clk 0:00:11]} 1-0

[Event "November 21 Late 2023"]
[Site "https://www.chess.com"]
[Date "2023.11.21"]
[Round "5"]
[White "Marcziter, Dmitrii"]
[Black "Toropov, Pavel"]
[Result "0-1"]
[Board "76"]
[TimeControl "180+1"]
[WhiteFideId "13900765"]
[BlackFideId "24129178"]
[WhiteElo "2142"]
[BlackElo "2182"]
[WhiteTeam "GER"]
[BlackTeam "RUS"]
[WhiteClock "0:00:00"]
[BlackClock "0:01:13"]

1. e4 {[%clk 0:03:00]}  d5 {[%clk 0:02:58]} 2. exd5 {[%clk 0:03:00]}  Qxd5 {[%clk 0:02:59]} 3. Nc3 {[%clk 0:03:00]}  Qd6 {[%clk 0:02:59]} 4. d4 {[%clk 0:02:59]}  Nf6 {[%clk 0:02:59]} 5. Bc4 {[%clk 0:02:58]}  a6 {[%clk 0:02:59]} 6. a4 {[%clk 0:02:57]}  b6 {[%clk 0:02:59]} 7. Nf3 {[%clk 0:02:56]}  Bb7 {[%clk 0:02:59]} 8. Ne5 {[%clk 0:02:54]}  e6 {[%clk 0:02:58]} 9. O-O {[%clk 0:02:53]}  Nc6 {[%clk 0:02:56]} 10. Bf4 {[%clk 0:02:37]}  Nxe5 {[%clk 0:02:47]} 11. dxe5 {[%clk 0:02:24]}  Qc6 {[%clk 0:02:47]} 12. f3 {[%clk 0:01:52]}  Qxc4 {[%clk 0:02:45]} 13. exf6 {[%clk 0:01:52]}  Qxf4 {[%clk 0:02:45]} 14. Ne4 {[%clk 0:01:41]}  gxf6 {[%clk 0:02:40]} 15. g3 {[%clk 0:01:32]}  Qe5 {[%clk 0:02:37]} 16. Re1 {[%clk 0:01:29]}  Bxe4 {[%clk 0:02:35]} 17. Rxe4 {[%clk 0:01:28]}  Qc5+ {[%clk 0:02:36]} 18. Kg2 {[%clk 0:01:28]}  Rd8 {[%clk 0:02:35]} 19. Qe2 {[%clk 0:01:27]}  Bg7 {[%clk 0:02:35]} 20. Rg4 {[%clk 0:01:23]}  O-O {[%clk 0:02:32]} 21. Re1 {[%clk 0:01:10]}  f5 {[%clk 0:02:30]} 22. Rg5 {[%clk 0:01:08]}  h6 {[%clk 0:02:27]} 23. Rh5 {[%clk 0:01:07]}  Qb4 {[%clk 0:02:25]} 24. c3 {[%clk 0:01:06]}  Qxa4 {[%clk 0:02:24]} 25. Qe3 {[%clk 0:01:00]}  Qc2+ {[%clk 0:02:19]} 26. Re2 {[%clk 0:01:00]}  Qd3 {[%clk 0:02:19]} 27. Qf2 {[%clk 0:00:53]}  a5 {[%clk 0:02:14]} 28. Kh3 {[%clk 0:00:40]}  a4 {[%clk 0:02:05]} 29. Re3 {[%clk 0:00:36]}  Qd6 {[%clk 0:01:48]} 30. Re2 {[%clk 0:00:30]}  b5 {[%clk 0:01:44]} 31. Qe3 {[%clk 0:00:30]}  Rfe8 {[%clk 0:01:38]} 32. Rg2 {[%clk 0:00:15]}  c5 {[%clk 0:01:31]} 33. g4 {[%clk 0:00:11]}  f4 {[%clk 0:01:28]} 34. Qe4 {[%clk 0:00:11]}  Qd3 {[%clk 0:01:25]} 35. Qb7 {[%clk 0:00:08]}  Rd5 {[%clk 0:01:21]} 36. Rf2 {[%clk 0:00:03]}  Rxh5+ {[%clk 0:01:19]} 37. gxh5 {[%clk 0:00:03]}  Rd8 {[%clk 0:01:18]} 38. Rg2 {[%clk 0:00:02]}  Qf5+ {[%clk 0:01:17]} 39. Kh4 {[%clk 0:00:00]}  Kf8 {[%clk 0:01:13]} 0-1

[Event "November 21 Late 2023"]
[Site "https://www.chess.com"]
[Date "2023.11.21"]
[Round "5"]
[White "Pinheiro, Iung Alicio de O."]
[Black "Pace, Christopher"]
[Result "1-0"]
[Board "78"]
[TimeControl "180+1"]
[WhiteFideId "2104350"]
[BlackFideId "2610167"]
[WhiteElo "2283"]
[BlackElo "2429"]
[WhiteTeam "BRA"]
[BlackTeam "CAN"]
[WhiteClock "0:01:31"]
[BlackClock "0:00:44"]

1. Nf3 {[%clk 0:03:00]}  Nf6 {[%clk 0:02:59]} 2. b3 {[%clk 0:03:00]}  g6 {[%clk 0:02:57]} 3. Bb2 {[%clk 0:03:00]}  Bg7 {[%clk 0:02:58]} 4. g3 {[%clk 0:02:56]}  O-O {[%clk 0:02:57]} 5. Bg2 {[%clk 0:02:55]}  d6 {[%clk 0:02:57]} 6. d4 {[%clk 0:02:54]}  Nc6 {[%clk 0:02:53]} 7. O-O {[%clk 0:02:51]}  e5 {[%clk 0:02:53]} 8. dxe5 {[%clk 0:02:50]}  Ng4 {[%clk 0:02:53]} 9. c4 {[%clk 0:02:49]}  Ngxe5 {[%clk 0:02:53]} 10. Nc3 {[%clk 0:02:49]}  Nxf3+ {[%clk 0:02:50]} 11. Bxf3 {[%clk 0:02:48]}  Bh3 {[%clk 0:02:48]} 12. Re1 {[%clk 0:02:48]}  Qd7 {[%clk 0:02:46]} 13. Qd2 {[%clk 0:02:48]}  Rae8 {[%clk 0:02:00]} 14. Nd5 {[%clk 0:02:34]}  f5 {[%clk 0:01:58]} 15. Rad1 {[%clk 0:02:21]}  Ne5 {[%clk 0:01:55]} 16. Bh1 {[%clk 0:02:16]}  Bg4 {[%clk 0:01:39]} 17. Bc3 {[%clk 0:01:47]}  Kh8 {[%clk 0:01:21]} 18. Qb2 {[%clk 0:01:45]}  Nc6 {[%clk 0:00:44]} 19. c5 {[%clk 0:01:31]} 1-0

[Event "November 21 Late 2023"]
[Site "https://www.chess.com"]
[Date "2023.11.21"]
[Round "5"]
[White "Pinto, Daniel"]
[Black "UK_23"]
[Result "1-0"]
[Board "81"]
[TimeControl "180+1"]
[WhiteFideId "3303144"]
[WhiteElo "2149"]
[BlackElo "2426"]
[WhiteTeam "BOL"]
[WhiteClock "0:00:01"]
[BlackClock "0:00:00"]

1. Nf3 {[%clk 0:02:59]}  d5 {[%clk 0:02:55]} 2. g3 {[%clk 0:02:59]}  Nf6 {[%clk 0:02:55]} 3. Bg2 {[%clk 0:03:00]}  e6 {[%clk 0:02:56]} 4. O-O {[%clk 0:03:01]}  Be7 {[%clk 0:02:56]} 5. b3 {[%clk 0:03:01]}  O-O {[%clk 0:02:56]} 6. Bb2 {[%clk 0:03:01]}  a5 {[%clk 0:02:57]} 7. a3 {[%clk 0:03:01]}  a4 {[%clk 0:02:57]} 8. b4 {[%clk 0:03:01]}  b5 {[%clk 0:02:45]} 9. d3 {[%clk 0:02:59]}  Bb7 {[%clk 0:02:46]} 10. Nc3 {[%clk 0:02:43]}  c6 {[%clk 0:02:44]} 11. e3 {[%clk 0:02:36]}  Re8 {[%clk 0:02:41]} 12. Ne2 {[%clk 0:02:36]}  Nbd7 {[%clk 0:02:38]} 13. Rc1 {[%clk 0:02:30]}  c5 {[%clk 0:02:36]} 14. bxc5 {[%clk 0:02:29]}  Bxc5 {[%clk 0:02:36]} 15. Qd2 {[%clk 0:01:59]}  Qe7 {[%clk 0:02:35]} 16. Ra1 {[%clk 0:01:52]}  Rec8 {[%clk 0:02:16]} 17. Rfb1 {[%clk 0:01:43]}  h6 {[%clk 0:01:57]} 18. Nfd4 {[%clk 0:01:26]}  Ba6 {[%clk 0:01:57]} 19. Nc3 {[%clk 0:01:14]}  Bxd4 {[%clk 0:01:25]} 20. exd4 {[%clk 0:01:14]}  Nf8 {[%clk 0:01:20]} 21. Na2 {[%clk 0:01:13]}  Qc7 {[%clk 0:01:17]} 22. Nb4 {[%clk 0:01:08]}  Bb7 {[%clk 0:01:15]} 23. Rf1 {[%clk 0:01:01]}  Ng6 {[%clk 0:01:07]} 24. f4 {[%clk 0:01:01]}  Ne7 {[%clk 0:01:07]} 25. Rac1 {[%clk 0:00:47]}  h5 {[%clk 0:01:05]} 26. Bh3 {[%clk 0:00:41]}  g6 {[%clk 0:01:01]} 27. Qe2 {[%clk 0:00:41]}  Nf5 {[%clk 0:00:54]} 28. Qe5 {[%clk 0:00:40]}  Ng4 {[%clk 0:00:51]} 29. Qe2 {[%clk 0:00:32]}  Qb6 {[%clk 0:00:36]} 30. Bxg4 {[%clk 0:00:22]}  hxg4 {[%clk 0:00:37]} 31. Qxg4 {[%clk 0:00:19]}  Nxd4 {[%clk 0:00:22]} 32. Kh1 {[%clk 0:00:20]}  Nf5 {[%clk 0:00:20]} 33. Bf6 {[%clk 0:00:16]}  d4+ {[%clk 0:00:16]} 34. Rf3 {[%clk 0:00:15]}  Ne3 {[%clk 0:00:13]} 35. Qg5 {[%clk 0:00:07]}  Bxf3+ {[%clk 0:00:11]} 36. Kg1 {[%clk 0:00:08]}  Qc5 {[%clk 0:00:08]} 37. Be5 {[%clk 0:00:05]}  Qf8 {[%clk 0:00:07]} 38. Qf6 {[%clk 0:00:04]}  Qh6 {[%clk 0:00:07]} 39. Bxd4 {[%clk 0:00:01]}  Nf5 {[%clk 0:00:00]} 40. Be5 {[%clk 0:00:01]} 1-0

[Event "November 21 Late 2023"]
[Site "https://www.chess.com"]
[Date "2023.11.21"]
[Round "5"]
[White "Sanchez Alvares, Kelvin Antonio"]
[Black "Kujawski, Adam"]
[Result "1-0"]
[Board "82"]
[TimeControl "180+1"]
[WhiteFideId "3906680"]
[BlackFideId "1100920"]
[WhiteElo "2217"]
[BlackElo "2054"]
[WhiteTeam "VEN"]
[BlackTeam "POL"]
[WhiteClock "0:01:11"]
[BlackClock "0:00:00"]

1. e4 {[%clk 0:02:54]}  e5 {[%clk 0:02:59]} 2. Nf3 {[%clk 0:02:54]}  Nc6 {[%clk 0:02:59]} 3. Bb5 {[%clk 0:02:53]}  a6 {[%clk 0:02:59]} 4. Ba4 {[%clk 0:02:53]}  Nf6 {[%clk 0:02:59]} 5. O-O {[%clk 0:02:51]}  Be7 {[%clk 0:02:58]} 6. Re1 {[%clk 0:02:50]}  b5 {[%clk 0:02:58]} 7. Bb3 {[%clk 0:02:51]}  d6 {[%clk 0:02:57]} 8. h3 {[%clk 0:02:47]}  Na5 {[%clk 0:02:50]} 9. d3 {[%clk 0:02:45]}  Nxb3 {[%clk 0:02:44]} 10. axb3 {[%clk 0:02:45]}  O-O {[%clk 0:02:44]} 11. Bg5 {[%clk 0:02:41]}  Nd7 {[%clk 0:01:42]} 12. Be3 {[%clk 0:02:37]}  c6 {[%clk 0:01:20]} 13. Nbd2 {[%clk 0:02:30]}  f5 {[%clk 0:01:05]} 14. exf5 {[%clk 0:02:27]}  Rxf5 {[%clk 0:01:05]} 15. d4 {[%clk 0:02:26]}  Bb7 {[%clk 0:00:32]} 16. c4 {[%clk 0:02:19]}  Qf8 {[%clk 0:00:26]} 17. Qc2 {[%clk 0:02:16]}  Rc8 {[%clk 0:00:21]} 18. Rad1 {[%clk 0:01:57]}  d5 {[%clk 0:00:19]} 19. dxe5 {[%clk 0:01:54]}  Nxe5 {[%clk 0:00:17]} 20. Nd4 {[%clk 0:01:50]}  Rh5 {[%clk 0:00:09]} 21. f4 {[%clk 0:01:30]}  Ng6 {[%clk 0:00:06]} 22. f5 {[%clk 0:01:24]}  Ne5 {[%clk 0:00:02]} 23. Bf4 {[%clk 0:01:20]}  Bd6 {[%clk 0:00:01]} 24. Bxe5 {[%clk 0:01:15]}  Bxe5 {[%clk 0:00:01]} 25. Rxe5 {[%clk 0:01:14]}  dxc4 {[%clk 0:00:02]} 26. Ne6 {[%clk 0:01:11]}  Qd6 {[%clk 0:00:00]} 27. Nf3 {[%clk 0:01:11]} 1-0

[Event "November 21 Late 2023"]
[Site "https://www.chess.com"]
[Date "2023.11.21"]
[Round "5"]
[White "Ferreira, Vitor Hugo Vieira"]
[Black "PapaieDudu"]
[Result "0-1"]
[Board "84"]
[TimeControl "180+1"]
[WhiteFideId "2119765"]
[WhiteElo "2123"]
[BlackElo "2380"]
[WhiteTeam "BRA"]
[WhiteClock "0:00:20"]
[BlackClock "0:00:27"]

1. d4 {[%clk 0:03:00]}  d5 {[%clk 0:02:53]} 2. c4 {[%clk 0:02:59]}  e6 {[%clk 0:02:53]} 3. Nf3 {[%clk 0:02:59]}  Nf6 {[%clk 0:02:53]} 4. Nc3 {[%clk 0:02:58]}  a6 {[%clk 0:02:53]} 5. c5 {[%clk 0:02:44]}  b6 {[%clk 0:02:52]} 6. cxb6 {[%clk 0:02:40]}  c5 {[%clk 0:02:50]} 7. e3 {[%clk 0:02:25]}  Nbd7 {[%clk 0:02:39]} 8. Bd3 {[%clk 0:02:24]}  Bd6 {[%clk 0:02:31]} 9. O-O {[%clk 0:02:22]}  O-O {[%clk 0:02:29]} 10. e4 {[%clk 0:02:23]}  cxd4 {[%clk 0:02:26]} 11. Nxd4 {[%clk 0:02:22]}  Qxb6 {[%clk 0:02:12]} 12. Be3 {[%clk 0:02:14]}  Qc7 {[%clk 0:01:59]} 13. Rc1 {[%clk 0:02:06]}  Bxh2+ {[%clk 0:01:56]} 14. Kh1 {[%clk 0:02:07]}  Qd6 {[%clk 0:01:28]} 15. g3 {[%clk 0:01:57]}  Bxg3 {[%clk 0:01:16]} 16. fxg3 {[%clk 0:01:58]}  Qxg3 {[%clk 0:01:15]} 17. Qf3 {[%clk 0:01:53]}  Qh4+ {[%clk 0:01:07]} 18. Kg2 {[%clk 0:01:53]}  Ne5 {[%clk 0:00:53]} 19. Bf2 {[%clk 0:01:20]}  Nxf3 {[%clk 0:00:48]} 20. Bxh4 {[%clk 0:01:18]}  Nxh4+ {[%clk 0:00:48]} 21. Kg3 {[%clk 0:01:18]}  dxe4 {[%clk 0:00:46]} 22. Nxe4 {[%clk 0:01:16]}  Nxe4+ {[%clk 0:00:47]} 23. Bxe4 {[%clk 0:01:15]}  Rb8 {[%clk 0:00:44]} 24. Kxh4 {[%clk 0:01:15]}  Rb4 {[%clk 0:00:41]} 25. Rfd1 {[%clk 0:01:13]}  e5 {[%clk 0:00:40]} 26. a3 {[%clk 0:00:41]}  Rxd4 {[%clk 0:00:40]} 27. Rxd4 {[%clk 0:00:41]}  exd4 {[%clk 0:00:41]} 28. Rc7 {[%clk 0:00:29]}  Re8 {[%clk 0:00:35]} 29. Kg3 {[%clk 0:00:29]}  g5 {[%clk 0:00:30]} 30. Bc6 {[%clk 0:00:26]}  Re3+ {[%clk 0:00:28]} 31. Kf2 {[%clk 0:00:27]}  Be6 {[%clk 0:00:28]} 32. Bb7 {[%clk 0:00:24]}  g4 {[%clk 0:00:26]} 33. Bxa6 {[%clk 0:00:24]}  g3+ {[%clk 0:00:26]} 34. Kf1 {[%clk 0:00:24]}  Bh3+ {[%clk 0:00:26]} 35. Kg1 {[%clk 0:00:20]}  Re1+ {[%clk 0:00:27]} 0-1